bitfinex/quotes_ETHUSD_20260109
["timestamp","ask_amount","ask_price","bid_price","bid_amount"]
[1767979011238,0.96056851,3113.5,3112.4,3.21371379]
[1767979011388,0.96056851,3113.3,3112.4,0.0008104]
[1767979012138,0.96056851,3113.3,3112.3,0.02289926]
[1767979012139,0.00080096,3112.7,3112.3,0.00698606]
[1767979012481,0.00080096,3112.7,3112.3,3.21999956]
[1767979013288,0.00080096,3112.7,3112.3,0.00698606]
[1767979014300,0.00080096,3112.7,3112.3,3.22003993]
[1767979014705,0.00080096,3112.7,3112.3,6.43309779]
[1767979015226,0.00080096,3112.7,3112.3,3.22003993]
[1767979015603,0.00080096,3112.7,3112.3,6.43309779]
[1767979016038,0.00080096,3112.7,3112.3,3.22003993]
[1767979016689,0.00080096,3112.7,3112.3,6.43309779]
[1767979016973,0.00080096,3112.7,3112.3,3.22003993]
[1767979017175,0.00080096,3112.7,3112.3,6.43309779]
[1767979017385,0.00080096,3112.7,3112.3,7.07640757]
[1767979017580,0.96137011,3113.7,3112.4,0.00081121]
[1767979017765,0.252,3113.5,3112.4,0.94505286]
[1767979018171,0.0008016,3113.7,3112.5,0.94424165]
[1767979018483,0.0008016,3113.7,3112.5,2.64107937]
[1767979019075,4.17303005,3113.7,3112.5,2.64107937]
[1767979019243,4.17303005,3113.7,3112.5,2.38907937]
[1767979019457,0.96056851,3113.6,3112.7,3.21264497]
[1767979019988,0.96056851,3113.6,3112.4,0.00081121]
[1767979020493,0.96056851,3113.6,3112.6,3.2127221]
[1767979021260,0.96056851,3113.6,3112.4,0.00081121]
[1767979021459,0.96056851,3113.4,3112.4,3.21368069]
[1767979021700,0.96056851,3113.3,3112.4,0.00081121]
[1767979021903,0.96056851,3113.3,3110.7,0.52896973]
[1767979021904,0.01601948,3112.9,3110.7,0.52896973]
[1767979022100,0.96056851,3112.6,3111.4,3.21474678]
[1767979022271,0.96056851,3112.4,3111.5,3.21382287]
[1767979022591,0.96056851,3112.4,3111.4,0.00080112]
[1767979022788,0.252,3112.5,3111.4,0.00080112]
[1767979022789,0.02661518,3111.5,3111.4,0.00080112]
[1767979023296,0.02661518,3111.5,3110.4,0.252]
[1767979023297,0.97796425,3111.5,3110.2,3.21602697]
[1767979023588,0.00080048,3111.2,3110.3,3.53665773]
[1767979023892,0.00080048,3111.2,3110.2,0.00080048]
[1767979023893,0.25280048,3111.2,3110.2,0.00080048]
[1767979024192,0.95134907,3111.1,3110.2,0.00080048]
[1767979024696,0.5,3110.8,3110.3,3.21511154]
[1767979024864,0.252,3111.0,3110.3,6.43023548]
[1767979025057,0.252,3111.0,3110.4,0.6431036]
[1767979025254,1.20334907,3110.9,3110.2,0.00080048]
[1767979025469,3.21460717,3110.8,3110.2,0.00080048]
[1767979025668,0.95134907,3110.7,3110.2,0.00080048]
[1767979025892,3.21505626,3111.2,3110.2,0.00080048]
[1767979025893,0.252,3110.6,3110.2,0.00080048]
[1767979026192,0.252,3110.7,3110.2,0.00080048]
[1767979026409,0.00080048,3111.2,3110.2,0.00080048]
[1767979026572,0.252,3111.1,3110.2,0.00080048]
[1767979026910,0.00080048,3111.2,3110.2,0.00080048]
[1767979027362,0.25280048,3111.2,3110.2,0.00080048]
[1767979027565,0.252,3111.3,3110.8,0.00080056]
[1767979028573,0.02661518,3111.5,3110.8,0.00080056]
[1767979028759,0.252,3111.4,3110.8,0.00080056]
[1767979029271,0.95134907,3111.3,3110.2,3.21602779]
[1767979029566,3.21429719,3111.1,3109.8,6.43128174]
[1767979029773,0.01601948,3110.3,3108.5,0.16707847]
[1767979029974,0.00080104,3109.6,3108.5,0.16707847]
[1767979030270,0.25280104,3109.6,3108.3,0.00080168]
[1767979030475,0.01601948,3109.9,3109.3,0.0008088]
[1767979030656,0.01601948,3109.8,3109.3,0.0008088]
[1767979030861,0.01601948,3109.6,3109.3,0.0008088]
[1767979031188,0.01601948,3109.8,3109.3,0.0008088]
[1767979031394,0.01601948,3109.7,3109.3,0.0008088]
[1767979031758,0.01601948,3109.5,3108.5,3.2169443]
[1767979031984,0.01601948,3109.0,3108.3,0.00080168]
[1767979032188,0.252,3108.9,3108.3,0.00080168]
[1767979032388,0.96736855,3109.0,3108.3,0.00080168]
[1767979032389,0.01601948,3109.0,3108.3,0.00080168]
[1767979032590,0.252,3108.8,3108.3,0.00080168]
[1767979032793,0.252,3108.8,3108.3,3.21793302]
[1767979032992,0.252,3108.8,3108.5,3.21698441]
[1767979033317,0.01601948,3109.0,3108.3,0.64433238]
[1767979033318,0.252,3109.0,3108.3,0.64433238]
[1767979033461,0.252,3109.1,3108.6,6.43376438]
[1767979033664,0.252,3109.2,3108.6,6.43376438]
[1767979033880,0.0008088,3109.7,3108.5,0.94342065]
[1767979034191,0.0008088,3109.7,3108.7,0.94342065]
[1767979035075,0.01682828,3109.7,3108.7,0.94342065]
[1767979035277,0.0008088,3109.7,3108.7,0.94342065]
[1767979035475,0.01682828,3109.7,3108.7,0.94342065]
[1767979035907,0.26882828,3109.7,3108.8,6.43335048]
[1767979036410,0.26882828,3109.7,3109.0,0.001]
[1767979037500,0.0008088,3109.7,3109.0,0.001]
[1767979038015,0.96736855,3111.0,3109.0,0.94442065]
[1767979038177,0.96736855,3111.0,3109.3,0.94423025]
[1767979038178,0.01601948,3110.7,3109.3,0.94423025]
[1767979038516,0.01601948,3110.5,3109.3,0.94423025]
[1767979039014,0.00080048,3110.6,3109.3,0.94423025]
[1767979039576,0.01601948,3110.5,3109.3,0.94423025]
[1767979039779,0.25280048,3110.6,3109.3,0.94423025]
[1767979040078,0.00080048,3110.6,3109.5,0.94342065]
[1767979040320,0.00080048,3110.6,3109.6,2.00257908]
[1767979040481,0.00080048,3110.6,3109.7,0.95898545]
[1767979040679,0.00080048,3110.6,3109.8,0.94342065]
[1767979041118,0.252,3111.4,3110.2,0.00080056]
[1767979041328,6.42925147,3111.2,3110.2,0.00080056]
[1767979041625,0.01601948,3110.9,3110.2,0.00080056]
[1767979041979,0.66054657,3111.1,3110.2,0.00080056]
[1767979042183,0.252,3111.0,3110.2,0.00080056]
[1767979042613,0.01682004,3111.2,3110.2,0.00080056]
[1767979042913,3.48304059,3111.2,3110.2,0.00080056]
[1767979043120,0.34830406,3111.1,3110.2,0.00080056]
[1767979043483,0.01601948,3111.0,3110.2,0.00080056]
[1767979043685,0.36432354,3111.1,3110.2,0.00080056]
[1767979043903,6.42880102,3111.0,3110.2,0.00080056]
[1767979044095,0.01601948,3110.6,3110.2,0.00080056]
[1767979044301,0.26801948,3110.7,3110.2,0.00080056]
[1767979044596,0.252,3110.8,3110.2,0.00080056]
[1767979045207,0.01601948,3110.9,3110.2,0.00080056]
[1767979045404,0.37548643,3110.9,3110.2,0.00080056]
[1767979045762,0.00080112,3111.8,3111.1,0.13627315]
[1767979046313,0.95215019,3111.8,3111.1,0.13627315]
[1767979046616,0.00080112,3111.8,3111.1,0.13627315]
[1767979046815,0.25280112,3111.8,3111.1,0.13627315]
[1767979047020,0.25280112,3111.8,3111.1,0.05313195]
[1767979047211,0.95134907,3111.7,3111.1,0.05313195]
[1767979047406,0.25280112,3111.8,3111.1,0.05313195]
[1767979047716,0.00080112,3111.8,3111.1,0.05313195]
[1767979048087,0.252,3111.7,3111.1,0.05313195]
[1767979048924,0.252,3111.6,3111.1,0.05313195]
[1767979050025,0.252,3111.6,3111.1,3.26737381]
[1767979050232,0.00080112,3111.8,3111.1,7.12984676]
[1767979050436,0.252,3111.7,3111.1,0.70130771]
[1767979050596,0.252,3111.7,3111.1,0.05313195]
[1767979050797,0.00080112,3111.8,3111.1,0.05313195]
[1767979050997,0.00080112,3111.8,3111.1,3.26742001]
[1767979051294,0.00080112,3111.8,3111.1,0.05313195]
[1767979051490,0.252,3111.7,3111.1,3.26741938]
[1767979051718,0.00080112,3111.8,3111.1,3.26741938]
[1767979051719,0.252,3111.6,3111.1,3.26741938]
[1767979051902,0.252,3111.6,3111.1,0.05313195]
[1767979052341,0.252,3111.6,3111.1,3.26741985]
[1767979052501,0.00080112,3111.8,3111.1,7.12989533]
[1767979053328,0.252,3112.0,3111.1,7.12989533]
[1767979053329,0.252,3112.3,3111.4,0.0008012]
[1767979053856,0.00080104,3112.7,3111.4,0.9306986]
[1767979054012,0.252,3112.6,3111.4,0.9306986]
[1767979054204,0.25280104,3112.7,3111.6,0.9298974]
[1767979054398,0.00080104,3112.7,3111.7,1.98705233]
[1767979054635,0.00080104,3112.7,3111.7,1.05715493]
[1767979054824,3.21349208,3112.7,3111.7,1.05715493]
[1767979055203,6.42618312,3112.7,3111.7,1.05715493]
[1767979055404,0.66789943,3112.6,3111.5,3.21388397]
[1767979055827,0.66789943,3112.6,3111.5,6.42776794]
[1767979056126,0.66789943,3112.6,3111.4,6.42877574]
[1767979056331,0.252,3112.5,3111.4,6.42877574]
[1767979057209,0.252,3112.5,3111.4,7.35867314]
[1767979057609,0.252,3112.6,3111.5,0.9298974]
[1767979057809,0.00080104,3112.7,3111.5,0.9298974]
[1767979058011,3.46547182,3112.7,3111.5,0.9298974]
[1767979058230,4.13334668,3112.7,3111.6,3.94955984]
[1767979058415,4.13334668,3112.7,3111.6,7.16334053]
[1767979058608,7.34601746,3112.7,3111.6,3.94955984]
[1767979059036,0.9206759,3112.7,3111.6,7.16334053]
[1767979059719,0.9206759,3112.7,3111.6,8.09323793]
[1767979059906,0.9206759,3112.7,3111.7,1.13071146]
[1767979060109,0.252,3112.6,3111.7,1.13071146]
[1767979060435,0.252,3112.6,3111.8,6.42714826]
[1767979060639,0.00080104,3112.7,3111.8,7.35704566]
[1767979060947,0.00080104,3112.7,3111.8,10.55922654]
[1767979061310,0.00080104,3112.7,3111.8,7.34565241]
[1767979061536,0.00080104,3112.7,3111.9,0.84763639]
[1767979061842,0.002,3112.2,3111.8,3.20218088]
[1767979062144,0.002,3112.2,3111.8,6.41575501]
[1767979062440,0.002,3112.2,3111.7,0.001]
[1767979062644,0.002,3112.2,3111.7,0.9308974]
[1767979064211,0.0008016,3113.7,3112.2,0.9298974]
[1767979064431,0.90022394,3113.2,3112.4,0.00081202]
[1767979064641,0.90022394,3113.0,3112.4,0.00081202]
[1767979065033,0.01601948,3112.8,3112.4,0.00081202]
[1767979065239,0.252,3112.7,3112.4,0.00081202]
[1767979066845,0.252,3112.6,3112.4,0.00081202]
[1767979067487,6.42473988,3113.0,3112.4,0.00081202]
[1767979067753,0.252,3112.7,3112.4,0.00081202]
[1767979067930,0.75783269,3113.1,3112.4,0.00081202]
[1767979068144,6.69227746,3113.2,3112.4,0.00081202]
[1767979068320,0.01601948,3113.0,3112.4,0.00081202]
[1767979069352,0.252,3112.9,3112.4,0.00081202]
[1767979070142,3.2141073,3113.3,3112.4,0.00081202]
[1767979070448,0.252,3113.1,3112.4,0.00081202]
[1767979070651,0.73647177,3113.3,3112.4,0.00081202]
[1767979070652,3.21402594,3113.3,3112.4,0.00081202]
[1767979070947,0.252,3113.1,3112.4,0.00081202]
[1767979071318,0.002,3113.3,3112.4,0.00081202]
[1767979071556,3.21402894,3113.3,3112.4,0.00081202]
[1767979071717,0.32140289,3113.2,3112.4,0.00081202]
[1767979072574,3.53355969,3113.2,3112.4,0.00081202]
[1767979072772,0.57340289,3113.2,3112.4,0.00081202]
[1767979072997,3.78553188,3113.2,3112.4,0.00081202]
[1767979073179,6.99767051,3113.2,3112.4,0.00081202]
[1767979073473,0.701569,3113.1,3112.4,0.96840454]
[1767979073648,0.002,3113.3,3112.4,0.96840454]
[1767979074478,0.002,3113.3,3112.5,6.4257028]
[1767979074655,0.002,3113.3,3112.5,4.18044392]
[1767979075376,0.002,3112.9,3112.5,4.18044392]
[1767979075572,0.002,3112.9,3112.4,0.00081202]
[1767979075780,0.002,3112.9,3112.4,3.21374747]
[1767979077477,0.002,3112.9,3112.4,0.00081202]
[1767979077774,0.002,3112.9,3112.4,0.64360555]
[1767979077973,0.002,3112.9,3112.4,1.61119807]
[1767979078367,0.002,3112.9,3112.4,0.00081202]
[1767979079490,0.002,3112.9,3112.4,0.00081202]
[1767979080575,0.002,3113.2,3112.4,0.00081202]
[1767979080576,0.002,3113.2,3112.4,0.96840454]
[1767979080790,0.002,3113.3,3112.4,1.22040454]
[1767979081077,0.002,3113.3,3112.4,0.00081202]
[1767979081278,0.01682108,3113.7,3112.7,0.96759252]
[1767979081279,0.0008016,3113.7,3112.7,0.96759252]
[1767979081466,4.11515581,3113.7,3112.4,0.96840454]
[1767979081654,0.41151558,3113.6,3112.5,6.4257028]
[1767979081992,0.90270155,3113.6,3112.4,0.00081202]
[1767979082147,0.90270155,3113.6,3112.4,3.21376181]
[1767979082342,0.91872103,3113.6,3112.4,0.00081202]
[1767979082576,0.90270155,3113.3,3112.4,0.00081202]
[1767979082774,0.252,3113.2,3112.4,0.00081202]
[1767979083481,0.26801948,3113.2,3112.4,0.00081202]
[1767979083681,0.26801948,3113.2,3111.7,0.001]
[1767979083682,0.00080112,3112.7,3111.7,0.001]
[1767979084179,0.32141549,3112.6,3111.7,0.001]
[1767979084386,0.25280112,3112.7,3111.7,0.001]
[1767979084680,0.00080112,3112.7,3111.7,0.001]
[1767979084888,1.16342985,3112.7,3111.7,0.001]
[1767979085585,0.92664821,3112.4,3111.7,0.001]
[1767979085751,6.42611572,3112.3,3111.7,0.001]
[1767979085947,6.42611572,3112.3,3111.4,0.0008012]
[1767979085948,1.6619246,3112.2,3111.4,0.0008012]
[1767979086153,0.73527639,3112.2,3111.4,0.0008012]
[1767979086353,0.252,3112.4,3111.4,0.0008012]
[1767979086863,1.16262873,3112.4,3111.4,0.0008012]
[1767979087064,9.63885384,3112.7,3111.4,0.0008012]
[1767979087270,3.21346936,3112.7,3111.4,0.98970615]
[1767979087464,1.23205687,3112.6,3111.4,0.0008012]
[1767979087765,4.12348187,3112.5,3111.4,0.0008012]
[1767979087971,4.37548187,3112.5,3111.4,0.0008012]
[1767979088194,4.37548187,3112.5,3111.7,0.001]
[1767979088566,0.91062873,3112.5,3111.7,0.001]
[1767979088880,0.252,3112.4,3111.7,0.001]
[1767979089079,0.437553,3112.3,3111.7,0.001]
[1767979090873,0.252,3112.2,3111.7,0.001]
[1767979092283,3.46516246,3112.2,3111.7,0.001]
[1767979093290,0.252,3112.2,3111.7,0.001]
[1767979095670,3.46517209,3112.2,3111.7,0.001]
[1767979095998,4.26780378,3112.2,3111.7,0.001]
[1767979096493,1.05463169,3112.2,3111.7,0.001]
[1767979097295,4.26780415,3112.2,3111.7,0.001]
[1767979098500,0.437553,3112.3,3111.7,0.001]
[1767979098798,0.252,3112.2,3111.7,0.001]
[1767979099007,1.16262873,3112.2,3111.7,0.001]
[1767979099299,0.0008012,3111.8,3111.1,6.42199169]
[1767979100501,0.0008012,3111.8,3111.2,1.0064335]
[1767979100816,0.0008012,3111.8,3111.3,8.48135833]
[1767979101100,0.0008012,3111.8,3111.7,0.001]
[1767979102508,0.0008012,3111.8,3111.3,8.48135833]
[1767979102871,0.0008012,3111.8,3111.3,5.26726776]
[1767979103103,0.0008012,3111.8,3111.3,4.27836281]
[1767979103630,0.00080112,3112.7,3111.9,0.98890495]
[1767979104374,0.00080112,3112.7,3111.5,0.98890495]
[1767979104578,0.91062873,3112.6,3111.4,0.68063756]
[1767979105083,6.42612636,3112.7,3111.4,3.64258163]
[1767979105084,7.33633153,3112.5,3111.4,3.64258163]
[1767979105283,0.98563315,3112.4,3111.4,3.64258163]
[1767979105491,1.89626188,3112.4,3111.4,0.00080128]
[1767979105792,1.89626188,3112.4,3111.4,3.2147659]
[1767979106375,1.64426188,3112.4,3111.4,6.42875317]
[1767979106611,0.252,3112.3,3111.4,6.42875317]
[1767979106812,0.252,3112.5,3111.5,0.98890495]
[1767979107089,0.252,3112.5,3111.6,6.42756138]
[1767979107784,0.252,3112.5,3111.6,7.41646633]
[1767979108110,0.00080112,3112.7,3111.6,7.41646633]
[1767979108317,0.00080112,3112.7,3111.4,3.21475998]
[1767979108318,0.91062873,3112.5,3111.5,3.21385835]
[1767979108890,0.252,3112.4,3111.5,3.21385835]
[1767979109090,0.252,3112.4,3111.4,4.20362329]
[1767979109399,0.252,3112.4,3111.5,0.42036233]
[1767979109795,0.252,3112.4,3111.5,1.40926728]
[1767979110001,0.252,3112.4,3111.6,0.98890495]
[1767979110652,4.37558922,3112.4,3111.5,0.42036233]
[1767979110842,4.37558922,3112.4,3111.4,3.21471834]
[1767979110843,0.91062873,3112.3,3111.4,3.21471834]
[1767979111130,0.91062873,3112.3,3111.4,0.00080128]
[1767979111131,0.43755874,3112.2,3111.4,0.00080128]
[1767979111304,0.91062873,3112.3,3111.4,0.00080128]
[1767979113045,4.12370917,3112.3,3111.4,0.00080128]
[1767979113735,0.002,3112.1,3111.4,0.00080128]
[1767979115714,0.91815081,3112.1,3111.4,0.00080128]
[1767979115905,0.91815081,3112.1,3111.0,1.0]
[1767979116109,0.91695209,3111.8,3111.0,1.0]
[1767979116307,0.91615081,3111.6,3111.0,0.92920739]
[1767979117113,0.93217029,3111.6,3111.0,0.92920739]
[1767979117320,3.21388397,3111.5,3111.0,0.92920739]
[1767979117521,0.41460543,3111.4,3111.0,0.92920739]
[1767979117847,0.252,3111.5,3111.0,0.92920739]
[1767979118415,0.91615081,3111.0,3110.2,0.00080056]
[1767979118646,0.91615081,3110.8,3109.4,0.90494918]
[1767979118816,0.91695137,3110.6,3109.4,0.90494918]
[1767979119020,0.91695137,3110.6,3109.4,0.41226992]
[1767979119021,0.93217029,3110.5,3109.4,0.41226992]
[1767979119219,0.93217029,3110.5,3109.3,0.0008096]
[1767979119220,0.91615081,3110.3,3109.3,0.0008096]
[1767979119410,4.13137812,3110.2,3109.3,0.0008096]
[1767979119719,0.93217029,3110.1,3109.3,0.0008096]
[1767979119921,0.0008096,3109.7,3109.2,0.0008012]
[1767979120125,0.252,3109.6,3109.2,0.0008012]
[1767979120825,4.14780993,3110.6,3109.3,0.90494918]
[1767979121058,3.46695707,3110.5,3109.3,0.90575958]
[1767979121250,0.93297085,3110.6,3109.3,0.90575958]
[1767979121434,0.252,3110.5,3109.5,0.90494918]
[1767979123356,0.252,3110.5,3109.4,6.43210908]
[1767979123649,0.252,3110.5,3109.5,0.64329195]
[1767979123956,0.91615081,3110.4,3109.5,0.64329195]
[1767979124118,0.91615081,3110.1,3109.3,0.0008104]
[1767979124320,0.01601948,3110.2,3108.6,0.90494918]
[1767979124321,0.91696121,3109.7,3108.6,3.21682314]
[1767979124513,0.26882068,3109.6,3108.4,3.21700836]
[1767979124821,0.26882068,3109.6,3108.3,0.90575086]
[1767979125021,0.93217029,3109.4,3108.3,0.00080168]
[1767979125222,0.93217029,3109.4,3108.4,3.21706831]
[1767979125418,0.93217029,3109.4,3108.5,3.21691784]
[1767979125643,4.14825451,3109.4,3108.5,3.21691784]
[1767979125951,7.36433873,3109.4,3108.4,0.64351505]
[1767979126150,7.36433873,3109.4,3108.3,0.00080168]
[1767979126151,0.91615081,3109.3,3108.3,0.00080168]
[1767979126346,0.91615081,3109.3,3108.3,3.21794978]
[1767979126520,0.91615081,3109.3,3108.3,0.00080168]
[1767979127663,9.66427214,3109.4,3108.3,0.00080168]
[1767979127664,0.91615081,3108.9,3108.3,0.00080168]
[1767979127819,1.16815081,3108.8,3108.3,0.00080168]
[1767979128244,0.44006386,3108.8,3108.3,0.00080168]
[1767979128481,0.252,3108.7,3108.3,0.00080168]
[1767979128995,0.91615081,3109.1,3108.3,0.00080168]
[1767979129167,0.252,3109.0,3108.3,0.00080168]
[1767979129367,4.2173477,3109.4,3108.3,0.00080168]
[1767979129368,0.252,3108.9,3108.3,0.00080168]
[1767979129870,4.2173477,3109.4,3108.3,0.00080168]
[1767979130177,1.72853785,3109.3,3108.3,0.00080168]
[1767979130384,1.23720541,3109.2,3108.3,0.00080168]
[1767979130893,4.2012246,3109.5,3108.3,0.00080168]
[1767979131092,0.98520541,3109.3,3108.3,0.00080168]
[1767979131262,0.01601948,3109.4,3108.3,0.95844286]
[1767979131467,0.252,3109.3,3108.3,0.95844286]
[1767979132236,0.01682068,3109.6,3108.4,6.43417834]
[1767979132366,0.252,3109.2,3108.5,0.73926212]
[1767979132567,0.252,3109.4,3108.6,0.95764118]
[1767979133898,0.252,3109.5,3108.6,0.95764118]
[1767979134216,0.252,3109.5,3108.7,3.21677871]
[1767979134365,0.0008012,3109.6,3108.8,0.95764118]
[1767979134564,0.0008012,3109.6,3108.9,0.95764118]
[1767979136059,0.0008012,3109.6,3109.0,6.43293662]
[1767979136182,0.0008012,3109.6,3108.9,0.95764118]
[1767979136383,0.0008012,3109.6,3108.9,7.39073752]
[1767979136581,0.0008012,3109.6,3109.0,0.73907375]
[1767979137075,0.0008012,3109.6,3109.0,0.73431395]
[1767979137603,0.0008012,3109.6,3109.0,1.69195513]
[1767979138101,0.0008012,3109.6,3109.2,0.95764118]
[1767979138304,1.23720541,3110.2,3109.3,0.00081121]
[1767979138503,0.98520541,3110.2,3109.3,0.96588192]
[1767979138806,0.98520541,3109.6,3109.0,0.73431395]
[1767979139007,0.98600669,3109.6,3108.2,0.253]
[1767979139215,0.98600669,3109.6,3108.9,3.2165349]
[1767979139216,1.23800669,3109.6,3108.9,3.2165349]
[1767979139703,1.23800669,3109.6,3108.8,3.21662549]
[1767979140306,1.23800669,3109.6,3108.7,0.001]
[1767979140510,0.00081121,3109.7,3109.2,0.95844254]
[1767979140801,0.98600597,3110.6,3109.2,0.95844254]
[1767979140802,0.00080056,3110.6,3109.3,0.9584532]
[1767979141007,0.01682004,3110.6,3109.3,0.9584532]
[1767979141305,0.252,3110.5,3109.3,0.9584532]
[1767979141607,3.23163497,3110.6,3109.3,0.9584532]
[1767979141804,3.58160042,3110.6,3109.3,0.9584532]
[1767979141982,4.56680583,3110.6,3109.3,0.9584532]
[1767979142181,3.23104005,3110.4,3109.3,0.00081202]
[1767979142604,3.23104005,3110.4,3109.3,0.9584532]
[1767979142804,3.23104005,3110.4,3109.3,0.00081202]
[1767979143005,0.36678549,3110.6,3109.3,0.00081202]
[1767979143207,3.23168802,3110.6,3109.3,0.00081202]
[1767979143553,0.9999027,3110.4,3109.3,0.00081202]
[1767979143687,0.01601948,3110.2,3109.3,0.00081202]
[1767979145180,0.01682004,3110.6,3109.3,0.00081202]
[1767979145374,0.252,3110.5,3109.3,0.96885744]
[1767979147308,3.21502057,3110.4,3109.4,3.21605454]
[1767979147519,3.21502057,3110.4,3109.5,0.4184912]
[1767979147686,0.252,3110.5,3109.5,0.4184912]
[1767979148012,3.21567994,3110.6,3109.5,0.4184912]
[1767979148212,0.00080056,3110.6,3109.6,0.96804542]
[1767979148412,0.002,3111.3,3110.3,0.96804542]
[1767979148615,0.002,3111.3,3110.5,0.96804542]
[1767979149539,0.002,3111.3,3110.6,4.18285928]
[1767979149834,0.002,3111.3,3110.7,0.41828593]
[1767979149995,0.002,3111.3,3110.5,3.21487292]
[1767979150202,0.002,3111.3,3110.5,4.18291834]
[1767979150399,0.002,3111.3,3110.6,0.96804542]
[1767979151025,0.002,3111.3,3110.5,3.21488047]
[1767979151184,0.002,3111.3,3110.4,3.21500205]
[1767979151383,0.002,3111.3,3110.4,0.73990629]
[1767979151585,0.002,3111.3,3110.4,3.2150056]
[1767979152800,0.002,3111.3,3110.2,0.00080064]
[1767979152801,0.98468386,3111.2,3110.2,0.00080064]
[1767979153123,0.9999027,3111.1,3110.2,0.00080064]
[1767979153330,0.00080064,3111.2,3110.2,0.00080064]
[1767979153498,0.64387816,3111.2,3110.2,0.00080064]
[1767979154027,0.01601948,3111.1,3110.2,0.00080064]
[1767979154433,0.9999027,3110.9,3110.2,0.00080064]
[1767979154931,0.26801948,3110.9,3110.2,0.00080064]
[1767979155505,3.48256523,3110.9,3110.2,0.00080064]
[1767979155698,1.65358727,3110.8,3110.2,0.00080064]
[1767979155898,0.01601948,3110.7,3110.2,0.00080064]
[1767979158234,0.9999027,3111.1,3110.2,0.00080064]
[1767979158235,3.23215609,3111.3,3110.2,0.00080064]
[1767979158390,3.23215609,3111.3,3110.2,0.96884606]
[1767979158591,0.01801948,3111.3,3110.2,0.96884606]
[1767979159393,0.00080064,3111.2,3110.3,7.3982933]
[1767979159607,0.00080064,3111.2,3110.4,0.96804542]
[1767979161497,0.00080064,3111.2,3110.5,7.39787984]
[1767979163111,0.00080064,3111.2,3110.6,0.96804542]
[1767979163814,0.00080064,3111.2,3110.7,3.21471051]
[1767979164022,0.00080064,3111.2,3110.7,7.16916964]
[1767979164195,0.00080064,3111.2,3110.5,3.21490884]
[1767979164396,0.00080064,3111.2,3110.3,3.21510997]
[1767979164397,0.00080064,3111.2,3110.3,3.46810997]
[1767979164593,0.00080064,3111.2,3110.5,3.21485453]
[1767979165327,0.00080064,3111.2,3110.2,0.96884606]
[1767979165927,0.00080064,3111.2,3110.3,6.43024788]
[1767979166125,0.00080064,3111.2,3110.3,7.17015727]
[1767979166332,0.002,3110.9,3110.4,0.96804542]
[1767979168230,0.002,3110.9,3110.4,3.21497311]
[1767979169404,0.002,3110.9,3110.2,0.00080064]
[1767979169608,0.9999027,3110.8,3110.2,0.00080064]
[1767979170242,4.21454503,3110.8,3110.2,0.00080064]
[1767979170440,0.4216545,3110.7,3110.2,0.00080064]
[1767979171101,1.40553772,3110.7,3110.2,0.00080064]
[1767979171308,0.01601948,3110.6,3110.2,0.00080064]
[1767979171740,0.9999027,3110.4,3110.2,0.00080064]
[1767979172140,4.21495149,3110.4,3109.7,0.001]
[1767979172342,0.78588134,3110.4,3109.7,0.001]
[1767979172549,0.01601948,3110.4,3109.7,0.001]
[1767979173647,3.23106204,3110.4,3109.7,0.001]
[1767979174029,4.17514492,3110.1,3109.7,0.001]
[1767979174356,0.01601948,3109.8,3109.3,0.00081202]
[1767979174652,0.97583371,3109.6,3109.3,0.00081202]
[1767979174858,0.01601948,3109.4,3109.2,0.00080136]
[1767979175171,0.01601948,3109.4,3108.3,0.00080168]
[1767979175325,0.01601948,3109.4,3108.4,3.21705478]
[1767979175661,0.01601948,3109.4,3108.4,3.53884043]
[1767979176171,0.01601948,3109.4,3108.3,0.00080168]
[1767979176172,7.39213017,3109.3,3108.3,0.00080168]
[1767979176467,0.97583371,3109.2,3108.3,0.00080168]
[1767979177059,0.01601948,3109.0,3108.3,0.00080168]
[1767979177461,0.97583371,3109.2,3108.3,0.00080168]
[1767979178232,3.21636486,3109.1,3108.3,0.00080168]
[1767979178563,0.74085513,3109.0,3108.3,0.00080168]
[1767979178862,0.75687461,3109.0,3108.6,0.001]
[1767979179259,0.75687461,3109.0,3108.3,0.00080168]
[1767979179828,1.71468884,3109.0,3108.3,0.00080168]
[1767979180028,0.01601948,3108.8,3108.3,0.00080168]
[1767979180561,3.232774,3108.8,3108.3,0.00080168]
[1767979180761,0.41925882,3108.7,3108.3,0.00080168]
[1767979181169,1.37987473,3108.7,3107.7,3.21860802]
[1767979181425,0.4200605,3108.7,3107.7,6.43642183]
[1767979181627,0.00080168,3108.7,3107.8,0.95602771]
[1767979182302,0.00080168,3108.7,3107.7,0.00080112]
[1767979182808,0.00080168,3108.7,3107.7,0.95682883]
[1767979184494,0.00080168,3108.7,3107.8,6.43542054]
[1767979184695,0.00080168,3108.7,3107.9,0.73922494]
[1767979186635,0.00080168,3108.7,3108.0,6.43500642]
[1767979188261,0.00080168,3108.7,3108.0,3.21750321]
[1767979189036,0.00080168,3108.7,3108.0,6.43500642]
[1767979189360,0.00080168,3108.7,3108.0,7.34900106]
[1767979189567,0.00080168,3108.7,3108.1,0.8088226]
[1767979190027,0.00080168,3108.7,3107.9,3.95681683]
[1767979190227,0.00080168,3108.7,3107.9,4.87081147]
[1767979190662,0.00080168,3108.7,3108.3,0.001]
[1767979192836,0.00080168,3108.7,3107.9,0.91399464]
[1767979195335,0.00080168,3108.7,3107.9,4.13155982]
[1767979195559,0.00080168,3108.7,3108.0,0.91399464]
[1767979197471,0.00080168,3108.7,3108.2,0.91399464]
[1767979198341,0.252,3109.4,3108.3,0.9147964]
[1767979198342,0.97586845,3109.4,3108.3,0.9147964]
[1767979198540,0.97586845,3109.4,3108.3,0.00080176]
[1767979198741,0.99188793,3109.4,3108.3,0.00080176]
[1767979198966,0.97586845,3109.2,3108.3,0.66966187]
[1767979199453,4.19223331,3109.1,3108.3,0.00080176]
[1767979199650,0.99188793,3109.0,3108.3,0.00080176]
[1767979199886,0.97586845,3108.9,3108.3,0.00080176]
[1767979200082,0.252,3109.0,3108.3,0.00080176]
[1767979200261,3.2323066,3109.2,3108.3,0.00080176]
[1767979200579,1.71824784,3109.3,3108.3,0.9147964]
[1767979200580,1.22786845,3109.3,3108.3,0.9147964]
[1767979200777,3.2166596,3109.6,3108.3,0.9147964]
[1767979200778,0.00080136,3109.6,3108.3,0.9147964]
[1767979201482,0.00080136,3109.6,3108.5,0.91399464]
[1767979202056,0.97666981,3109.6,3108.5,0.91399464]
[1767979202257,0.97666981,3109.6,3108.3,3.21798376]
[1767979202476,0.97586845,3109.4,3108.3,3.86151958]
[1767979202651,0.002,3108.7,3108.3,3.86151958]
[1767979202852,0.002,3109.0,3108.3,3.86151958]
[1767979203274,1.00108737,3109.0,3108.3,0.64433758]
[1767979203443,1.00108737,3109.0,3108.3,0.00080176]